bitfinex-derivatives/quotes_ETHF0:USTF0_20251028
["timestamp","ask_amount","ask_price","bid_price","bid_amount"]
[1761666664994,0.5571,4108.0,4107.9,0.4426]
[1761666665193,0.1312,4108.8,4108.4,0.2215]
[1761666665194,0.3324,4108.5,4108.4,0.2215]
[1761666665504,0.5571,4108.5,4108.4,0.7751]
[1761666665693,0.7793,4108.1,4108.0,0.2215]
[1761666665991,0.7793,4107.8,4107.7,0.554]
[1761666666203,0.2247,4107.8,4107.7,0.77695125]
[1761666666489,0.2247,4107.8,4107.7,0.22335125]
[1761666666689,0.7793,4107.8,4107.7,0.22335125]
[1761666666896,0.5571,4108.1,4108.0,0.2215]
[1761666667498,0.2247,4107.8,4107.7,0.55585125]
[1761666667799,0.2247,4107.8,4106.5,1.23545]
[1761666667800,0.3354,4107.6,4106.5,0.8019]
[1761666668096,0.3354,4107.6,4105.5,1.31198388]
[1761666668097,0.3354,4106.0,4105.5,1.31198388]
[1761666668397,0.3354,4106.0,4105.9,0.2297]
[1761666668587,0.1352,4107.0,4106.3,0.3419]
[1761666668588,0.3354,4106.7,4106.3,0.3419]
[1761666668789,0.5671666,4106.7,4106.6,0.2297]
[1761666669089,0.9305,4106.4,4106.3,0.00287405]
[1761666669292,0.0023666,4106.7,4106.6,0.8019]
[1761666670195,0.0023666,4106.7,4106.3,0.00287405]
[1761666670196,0.7953,4106.4,4106.3,0.00287405]
[1761666670392,0.9305,4106.4,4106.3,0.00287405]
[1761666671294,1.0033,4106.4,4106.3,0.00287405]
[1761666671997,0.9305,4106.4,4106.3,0.00287405]
[1761666673298,1.0033,4106.4,4106.3,0.00287405]
[1761666673498,9.0033,4106.4,4106.3,0.00287405]
[1761666673696,1.0033,4106.4,4106.3,0.00287405]
[1761666673896,0.3354,4106.3,4104.9,0.3419]
[1761666674202,0.1352,4106.4,4105.4,0.4385]
[1761666674600,0.7953,4105.4,4105.3,0.2297]
[1761666674801,0.7953,4105.4,4105.3,0.57424962]
[1761666675500,0.7953,4105.4,4105.3,0.23234962]
[1761666676098,0.7953,4105.4,4105.3,0.00264962]
[1761666676695,0.4706,4105.8,4105.3,0.46264962]
[1761666676900,0.5648,4105.7,4105.6,0.8019]
[1761666677100,0.3354,4106.1,4105.7,0.3419]
[1761666677306,0.5648,4105.8,4105.7,0.8019]
[1761666677497,0.5648,4106.3,4106.2,0.46]
[1761666677691,0.5648,4106.6,4106.5,0.2297]
[1761666677898,0.4599,4106.6,4105.9,0.3419]
[1761666678102,0.2294,4105.6,4105.5,0.8019]
[1761666678301,0.5648,4105.6,4105.5,0.8019]
[1761666678799,0.5648,4105.4,4105.3,0.00264962]
[1761666679102,0.5648,4105.4,4105.3,0.57424962]
[1761666679505,0.5648,4105.4,4105.3,0.23234962]
[1761666679900,0.3354,4105.7,4105.4,0.3419]
[1761666680199,0.1352,4105.8,4105.3,0.46264962]
[1761666680200,0.7953,4105.4,4105.3,0.00264962]
[1761666681200,0.3354,4105.8,4105.3,0.46264962]
[1761666681401,0.3354,4105.8,4105.7,0.8019]
[1761666681402,0.5648,4105.8,4105.7,0.8019]
[1761666682207,0.7953,4105.8,4105.7,0.46]
[1761666682408,0.7953,4105.8,4105.7,0.8019]
[1761666682610,0.7953,4105.8,4105.3,0.00264962]
[1761666682611,0.7953,4105.4,4105.3,0.00264962]
[1761666683403,0.8681,4105.4,4105.3,0.00264962]
[1761666684400,0.3354,4105.3,4104.0,0.3419]
[1761666684603,0.7953,4103.9,4103.8,15.1856]
[1761666684802,0.7953,4103.9,4103.8,0.2297]
[1761666685504,0.7953,4103.9,4103.8,0.23174308]
[1761666685705,0.7953,4103.9,4103.8,0.00204308]
[1761666688214,0.7953,4103.9,4102.8,0.1581736]
[1761666688215,0.2294,4102.9,4102.8,1.2650536]
[1761666688406,0.4599,4102.9,4102.8,0.0243736]
[1761666688603,0.7953,4102.9,4102.8,0.5959736]
[1761666688908,0.7953,4102.9,4102.8,0.8262736]
[1761666689318,0.79787113,4102.9,4102.8,0.82887918]
[1761666689808,0.56737113,4102.9,4102.8,0.82887918]
[1761666690006,0.56737113,4102.9,4102.8,0.90167918]
[1761666690209,0.56737113,4102.9,4102.8,0.82887918]
[1761666690407,0.5648,4103.9,4103.8,0.2297]
[1761666690707,0.5648,4103.9,4103.8,0.8019]
[1761666690708,0.2294,4103.9,4103.8,0.8019]
[1761666691007,0.5648,4103.5,4103.4,0.5716]
[1761666691406,0.3354,4104.5,4103.8,0.2303]
[1761666691708,0.5648,4103.9,4103.8,0.46]
[1761666692410,0.5648,4103.9,4103.8,0.8019]
[1761666692806,0.7953,4103.9,4103.8,0.46]
[1761666693004,0.7953,4103.9,4103.8,0.2297]
[1761666693215,0.2294,4103.5,4103.4,0.5716]
[1761666693511,0.3354,4103.9,4103.6,0.3419]
[1761666693713,0.5648,4103.9,4103.8,0.2297]
[1761666694011,0.5648,4103.7,4103.6,0.5716]
[1761666694212,0.5648,4103.7,4103.6,0.8019]
[1761666694612,0.3469,4104.4,4103.9,0.7807]
[1761666694910,0.3469,4104.4,4104.0,0.3296]
[1761666695111,0.7971,4104.1,4104.0,0.2327]
[1761666696009,0.00275237,4104.5,4103.9,0.2327]
[1761666696010,0.567,4104.0,4103.9,0.2327]
[1761666696314,0.567,4104.0,4103.9,0.5623]
[1761666697807,0.567,4104.0,4103.9,0.7807]
[1761666698207,0.567,4104.0,4103.9,1.21936]
[1761666698610,0.567,4104.0,4103.9,0.7807]
[1761666698815,0.7971,4104.4,4104.3,0.2327]
[1761666699614,0.2201,4103.8,4103.7,1.00098]
[1761666699814,0.567,4103.8,4103.7,1.21938]
[1761666700515,0.7971,4103.8,4103.7,0.7807]
[1761666700718,0.7971,4103.8,4103.7,0.2327]
[1761666701711,0.7971,4103.8,4103.7,0.7807]
[1761666702222,0.3469,4103.7,4103.1,0.3296]
[1761666702515,0.567,4103.5,4103.4,0.7807]
[1761666703214,0.7971,4103.5,4103.4,0.7807]
[1761666704518,0.9332,4103.5,4103.4,0.4511]
[1761666705023,0.7971,4103.5,4103.4,0.7807]
[1761666705215,0.3469,4103.8,4103.7,0.2327]
[1761666705420,0.567,4104.0,4103.9,0.7807]
[1761666705820,0.2201,4104.0,4103.9,0.7807]
[1761666706420,0.567,4104.3,4104.2,0.5623]
[1761666706625,0.7971,4104.3,4104.2,0.5623]
[1761666709418,0.9332,4104.0,4103.9,0.2327]
[1761666709621,0.3662,4104.0,4103.5,0.2327]
[1761666709829,0.2201,4104.0,4103.9,0.7807]
[1761666710629,0.2201,4104.0,4103.9,1.21936]
[1761666710930,0.2201,4104.0,4103.9,0.7807]
[1761666711533,0.2201,4104.0,4103.9,0.8535]
[1761666711732,0.2201,4104.0,4103.9,0.7807]
[1761666712133,0.2201,4104.0,4103.9,1.21936]
[1761666712531,0.22285237,4104.5,4104.4,1.2193]
[1761666712737,0.00275237,4104.5,4104.4,1.2193]
[1761666713033,0.567,4105.5,4105.4,1.21919]
[1761666713241,0.567,4105.9,4105.8,0.7807]
[1761666713737,0.7971,4105.9,4105.8,0.2327]
[1761666714038,0.79915406,4105.9,4105.8,0.23585095]
[1761666714529,0.79915406,4105.9,4105.8,0.00315095]
[1761666714730,0.87195406,4105.9,4105.8,0.00315095]
[1761666714932,0.7971,4104.9,4104.8,0.43856]
[1761666715129,0.567,4104.9,4104.8,1.21926]
[1761666715330,6.77404949,4106.2,4105.1,0.3296]
[1761666715532,0.52977078,4106.1,4105.2,0.3296]
[1761666715741,0.52977078,4106.0,4105.2,0.3296]
[1761666715936,0.52977078,4105.9,4105.1,0.3296]
[1761666716135,6.77404949,4106.2,4105.0,0.3625]
[1761666716136,0.52977078,4105.8,4105.2,0.3296]
[1761666716337,0.00291859,4105.8,4105.2,0.33198319]
[1761666717129,0.00291859,4105.8,4105.2,0.56468319]
[1761666717334,0.00291859,4105.8,4105.3,0.5623]
[1761666717640,0.00291859,4105.8,4105.4,0.3296]
[1761666718740,0.00291859,4105.8,4105.4,0.5623]
[1761666719043,0.00291859,4105.8,4105.7,0.5623]
[1761666719234,0.00291859,4105.8,4105.7,0.3296]
[1761666720643,6.77404949,4106.2,4106.1,0.7807]
[1761666721041,6.77404949,4106.2,4106.1,1.21912]
[1761666721441,0.86530691,4107.9,4106.7,0.3296]
[1761666721744,0.52943481,4107.8,4106.7,0.3296]
[1761666721937,0.52943481,4107.7,4106.7,0.3296]
[1761666722139,0.52943481,4107.6,4106.7,0.3296]
[1761666722344,0.52943481,4107.5,4106.8,0.3296]
[1761666722542,0.19522076,4107.9,4107.0,0.4594]
[1761666722742,0.52884908,4107.8,4107.1,0.3296]
[1761666722942,0.52884908,4107.7,4107.1,0.3296]
[1761666723144,0.00241357,4107.9,4107.1,0.3296]
[1761666723542,0.00241357,4107.9,4107.7,0.3296]
[1761666723838,0.0728,4107.8,4107.2,0.5623]
[1761666724146,0.00241357,4107.9,4107.7,0.5623]
[1761666724346,0.00241357,4107.9,4107.8,0.3296]
[1761666725144,0.00241357,4107.9,4107.8,0.7946]
[1761666726440,0.07521357,4107.9,4107.8,0.7946]
[1761666726646,0.07521357,4107.9,4107.8,0.5623]
[1761666726951,0.00241357,4107.9,4107.8,0.3296]
[1761666727851,0.07521357,4107.9,4107.6,0.4649]
[1761666728050,0.0728,4107.8,4107.7,0.3351]
[1761666728350,0.00241357,4107.9,4107.8,0.7867]
[1761666728550,0.86530691,4110.2,4108.2,0.1294]
[1761666728752,0.52627702,4110.1,4108.3,0.3351]
[1761666729047,0.52627702,4110.0,4108.3,0.3351]
[1761666729245,0.52627702,4109.9,4108.3,0.3351]
[1761666729452,0.52799976,4109.9,4108.3,0.33717261]
[1761666729651,0.0728,4109.8,4108.3,0.33717261]
[1761666729846,0.00172274,4109.9,4108.3,0.33717261]
[1761666730352,0.00172274,4109.9,4108.6,0.3351]
[1761666731352,0.00172274,4109.9,4108.6,0.5544]
[1761666731554,0.0728,4109.8,4108.6,0.3351]
[1761666731955,0.0728,4109.7,4108.6,0.3351]
[1761666732255,0.0728,4109.8,4108.6,0.3351]
[1761666732749,0.0728,4109.7,4108.6,0.3351]
[1761666733053,0.0728,4109.8,4108.6,0.3351]
[1761666733254,0.0728,4109.8,4108.8,0.1294]
[1761666733458,0.0728,4109.7,4108.8,0.1294]
[1761666733655,0.07452274,4109.9,4108.8,0.1294]
[1761666733856,0.0728,4109.8,4108.8,0.4645]
[1761666734555,0.0728,4109.7,4108.5,0.3351]
[1761666734754,0.0728,4109.8,4108.5,0.3351]
[1761666734954,0.0728,4109.8,4108.3,0.00207261]
[1761666735153,0.59802659,4109.7,4108.3,0.00207261]
[1761666735357,0.52535542,4109.6,4108.3,0.33717261]
[1761666735553,0.52541583,4109.5,4108.3,0.00207261]
[1761666735747,0.0728,4109.7,4108.3,0.33717261]
[1761666735952,0.52540685,4109.6,4108.3,0.33717261]
[1761666736151,0.52540685,4109.5,4108.3,0.33717261]
[1761666736358,0.52547968,4109.4,4108.3,0.33717261]
[1761666736653,0.525418,4109.3,4108.3,0.33717261]
[1761666736959,0.0728,4109.8,4108.3,0.55647261]
[1761666737260,0.5982258,4109.7,4108.5,0.1294]
[1761666737462,0.5254258,4109.6,4108.3,0.00207261]
[1761666737656,0.5254258,4109.5,4108.3,0.00207261]
[1761666737959,0.5254258,4109.4,4108.3,0.00207261]
[1761666738164,0.5254258,4109.3,4108.3,0.00207261]
[1761666738360,0.52571722,4109.2,4108.3,0.00207261]
[1761666738559,0.0728,4109.7,4108.3,0.00207261]
[1761666738857,1.39101226,4109.6,4108.3,0.00207261]
[1761666739059,0.52570535,4109.5,4107.6,0.4649]
[1761666739251,0.86530691,4109.3,4107.2,0.3351]
[1761666739452,0.86530691,4109.0,4107.2,0.3351]
[1761666739658,1.82366572,4109.2,4107.2,0.3351]
[1761666739659,0.86530691,4108.8,4107.2,0.3351]
[1761666739856,0.52570535,4108.7,4107.2,0.3351]
[1761666740055,0.59850535,4108.7,4107.2,0.33792445]
[1761666740262,0.59850535,4108.6,4107.2,0.33792445]
[1761666740559,1.29796037,4109.0,4107.2,0.33792445]
[1761666740560,0.52570535,4108.5,4107.2,0.33792445]
[1761666740757,0.52570535,4108.4,4107.5,0.1294]
[1761666740958,0.52570535,4108.3,4108.0,0.1294]
[1761666741163,7.36330691,4109.3,4108.3,0.3351]
[1761666741361,0.86530691,4109.1,4108.3,0.3351]
[1761666741566,0.52648514,4109.0,4108.3,0.3351]
[1761666741757,0.59928514,4109.0,4108.3,0.3351]
[1761666741958,0.59928514,4108.9,4108.3,0.3351]
[1761666742262,0.52648514,4108.8,4108.0,0.4645]
[1761666742463,0.52648514,4108.7,4108.0,0.4645]
[1761666742669,0.52648514,4108.6,4108.0,0.4645]
[1761666742858,0.52648514,4108.5,4108.1,0.3351]
[1761666743058,0.52648514,4108.4,4108.1,0.3351]
[1761666743258,0.52648514,4108.3,4108.1,0.3351]
[1761666743458,0.0728,4108.8,4108.1,0.3351]
[1761666743663,0.52736134,4108.7,4108.1,0.3351]
[1761666743963,0.52736134,4108.6,4108.2,0.3232]
[1761666744165,0.52736134,4108.5,4108.2,0.3232]
[1761666744363,0.60016134,4108.5,4108.3,0.3232]
[1761666744558,0.60016134,4108.4,4108.3,0.7648]
[1761666744764,0.52736134,4108.4,4108.3,0.7648]
[1761666744966,0.52736134,4109.0,4108.3,0.3232]
[1761666745361,1.39266825,4109.0,4108.4,0.3232]
[1761666745571,0.60016134,4108.9,4108.6,0.3232]
[1761666745764,0.52736134,4108.8,4108.6,0.5465]
[1761666745967,0.86530691,4109.6,4108.8,0.3232]
[1761666746270,0.86530691,4109.6,4108.7,0.4416]
[1761666746271,0.52781796,4109.5,4109.1,0.3232]
[1761666746568,1.46592487,4109.5,4109.1,0.3232]
[1761666746767,0.60061796,4109.4,4109.1,0.3232]
[1761666747064,1.39312487,4109.3,4108.5,0.1396]
[1761666747368,1.39312487,4109.2,4108.5,0.1396]
[1761666747568,0.52781796,4109.1,4108.5,0.1396]
[1761666747864,0.60061796,4109.1,4108.5,0.1396]
[1761666748062,0.60061796,4109.0,4108.6,0.3232]
[1761666748264,0.52781796,4108.9,4108.6,0.3232]
[1761666748464,0.52781796,4108.8,4108.6,0.3232]
[1761666748661,0.86530691,4109.1,4108.6,0.3232]
[1761666748662,0.52781796,4108.7,4108.6,0.3232]
[1761666748861,0.52781796,4108.7,4108.5,0.4628]
[1761666749067,0.60061796,4108.6,4108.5,0.4628]
[1761666749268,0.52781796,4108.6,4108.5,0.4628]
[1761666749569,0.0728,4108.6,4108.5,0.4628]
[1761666749772,0.52781796,4108.6,4108.5,0.1396]
[1761666750063,0.60061796,4108.6,4108.5,0.1396]
[1761666750264,0.60061796,4108.6,4108.5,0.4628]
[1761666750466,0.0728,4108.7,4108.6,0.3232]
[1761666753071,1.29796037,4109.0,4108.6,0.3232]
[1761666753272,0.0728,4108.9,4108.6,0.3232]
[1761666753668,1.29796037,4109.0,4108.6,0.3232]
[1761666753871,0.0728,4108.9,4108.6,0.3232]
[1761666754268,0.0728,4108.8,4108.6,0.3232]
[1761666754773,0.0728,4108.7,4108.6,0.3232]
[1761666754975,1.29796037,4108.9,4108.6,0.3232]
[1761666754976,0.0728,4108.8,4108.6,0.3232]
[1761666755376,0.0728,4108.7,4108.6,0.3232]
[1761666755572,1.37076037,4108.9,4108.7,0.3302]
[1761666755768,1.29796037,4108.9,4108.7,0.3302]
[1761666756270,1.73061383,4109.4,4108.9,0.3302]
[1761666756271,1.29796037,4109.0,4108.9,0.3302]
[1761666756575,1.29796037,4109.0,4108.9,0.5479]
[1761666756773,1.29796037,4109.0,4108.9,0.3302]
[1761666756973,1.29796037,4109.1,4109.0,0.4623]
[1761666757174,1.29796037,4109.1,4109.0,0.68]
[1761666757374,0.0728,4109.1,4109.0,0.68]
[1761666757676,1.29796037,4109.2,4109.1,0.3302]
[1761666758179,1.37076037,4109.2,4109.1,0.3302]
[1761666758377,1.29796037,4109.2,4109.1,0.7623]
[1761666758573,1.29796037,4109.7,4109.6,0.3302]
[1761666758778,1.29796037,4109.7,4109.0,0.1321]
[1761666758779,1.29796037,4109.7,4109.2,0.3302]
[1761666759077,0.0728,4109.6,4109.2,0.3302]
[1761666759275,0.0728,4109.6,4109.0,0.1321]
[1761666759471,0.0728,4109.6,4107.2,0.00282445]
[1761666759472,0.4582,4108.1,4107.2,0.00282445]
[1761666759672,0.7538,4107.3,4107.2,0.00282445]
[1761666760670,0.2956,4107.8,4107.2,0.50979706]
[1761666760882,0.4582,4107.8,4107.7,0.29257261]
[1761666761181,0.4582,4107.8,4107.2,0.00282445]
[1761666761182,0.7538,4107.3,4107.2,0.00282445]
[1761666762479,1.27805651,4107.3,4107.2,0.00282445]
[1761666762780,1.46970892,4107.3,4107.2,0.00282445]
[1761666763175,1.46970892,4107.3,4106.0,0.1321]
[1761666763176,0.2276,4106.1,4106.0,0.1321]
[1761666763380,0.4582,4105.7,4105.6,0.5479]
[1761666763575,0.7883,4105.6,4105.5,0.2177]
[1761666763773,0.3301,4105.5,4104.6,0.1321]
[1761666764080,0.3301,4105.3,4104.6,0.1321]
[1761666764272,0.1293,4105.2,4104.6,0.13400597]
[1761666764473,0.5577,4105.1,4105.0,0.2177]
[1761666764874,0.5577,4105.1,4105.0,0.29257261]
[1761666765379,0.7883,4105.1,4105.0,0.29257261]
[1761666765582,0.7883,4105.1,4105.0,0.07487261]
[1761666765880,0.5577,4105.0,4104.9,0.2144]
[1761666766074,0.5577,4105.0,4104.9,0.7623]
[1761666767284,0.5577,4105.0,4104.9,0.83717261]
[1761666767575,0.3301,4105.0,4104.9,0.83717261]
[1761666767779,0.00206779,4105.3,4105.2,0.8944]
[1761666767972,0.00206779,4105.3,4105.2,0.96927261]
[1761666768179,0.79036779,4105.3,4105.2,0.29257261]
[1761666768373,0.79036779,4105.3,4104.8,0.2177]
[1761666768374,0.7883,4104.9,4104.8,0.2177]
[1761666770175,0.1293,4105.2,4105.1,0.2177]
[1761666770377,0.1293,4105.2,4105.1,0.7623]
[1761666770378,0.2276,4105.2,4105.1,0.7623]
[1761666770786,0.5577,4105.2,4105.1,0.7623]
[1761666772384,0.5577,4105.2,4104.6,0.00190597]
[1761666772385,0.7883,4104.7,4104.6,0.54980597]
[1761666772686,0.7883,4104.7,4104.6,0.76420597]
[1761666773183,0.2276,4104.9,4104.8,0.3302]
[1761666773387,0.5577,4104.9,4104.8,0.5479]
[1761666773581,0.7883,4104.9,4104.8,0.5479]
[1761666773982,0.7883,4104.9,4104.8,0.7623]
[1761666774183,0.7883,4104.7,4104.6,0.00190597]
[1761666775895,0.8611,4104.7,4104.6,0.00190597]
[1761666776095,0.8611,4104.7,4104.0,0.2177]
[1761666776096,0.7883,4104.1,4104.0,0.2177]
[1761666776301,0.7883,4104.1,4104.0,0.7623]
[1761666776892,0.1293,4104.5,4103.4,0.1321]
[1761666776893,0.5577,4103.7,4103.6,0.7623]
[1761666777097,0.5577,4103.7,4103.6,0.76545577]
[1761666777597,0.7883,4103.7,4103.6,0.00315577]
[1761666777899,0.5577,4103.4,4103.3,0.2177]
[1761666778197,0.7883,4103.4,4103.3,0.2177]
[1761666778793,0.7883,4103.4,4103.3,0.55076003]
[1761666778997,0.7883,4103.4,4103.3,0.76516003]
[1761666779594,0.3301,4103.9,4103.8,0.2144]
[1761666779892,0.3301,4103.9,4103.8,0.7623]
[1761666779893,0.2276,4103.9,4103.8,0.7623]
[1761666780099,0.5577,4103.9,4103.8,0.7623]
[1761666780494,0.5577,4104.3,4104.2,0.2177]
[1761666780691,0.5577,4104.3,4103.8,0.3302]
[1761666780692,0.33216779,4105.3,4105.0,0.3302]
[1761666780891,0.46026779,4105.3,4104.7,0.3302]
[1761666781093,0.3301,4105.1,4104.7,0.3302]
[1761666781293,0.1293,4105.2,4104.7,0.5479]
[1761666781294,0.5577,4104.8,4104.7,0.5479]
[1761666781496,0.5577,4104.3,4104.2,0.7623]
[1761666781692,0.7883,4104.3,4104.2,0.4321]
[1761666781893,0.7883,4104.3,4103.4,0.3302]
[1761666781894,0.3301,4103.8,4103.4,0.3302]
[1761666782101,0.3301,4103.9,4103.5,0.3302]
[1761666782300,0.5577,4103.9,4103.8,0.5479]
[1761666782500,0.5577,4103.9,4103.8,0.7623]
[1761666783198,0.5577,4103.9,4103.3,0.33306003]
[1761666783199,0.3301,4103.8,4103.3,0.33306003]
[1761666783396,0.7883,4103.4,4103.3,0.22056003]
[1761666783793,0.7883,4103.4,4103.3,0.55076003]
[1761666783997,0.5577,4103.4,4103.3,0.76516003]
[1761666785506,0.3295,4103.9,4103.4,0.3309]
[1761666787309,0.3295,4103.9,4103.8,0.551]
[1761666787504,0.5477,4103.9,4103.8,0.551]
[1761666787809,0.3324,4103.8,4103.4,0.3309]
[1761666788306,0.1293,4104.0,4103.4,0.3309]
[1761666788307,0.5527,4103.5,4103.4,0.5445]
[1761666788711,0.7743,4103.4,4103.3,0.00286003]
[1761666788911,0.9085,4103.4,4103.3,0.00286003]
[1761666789805,0.3324,4103.4,4103.3,0.21646003]
[1761666790009,0.7743,4103.4,4103.3,0.21646003]
[1761666790212,0.7743,4103.4,4103.3,0.00286003]
[1761666790213,0.9085,4103.4,4103.3,0.00286003]
[1761666790607,0.9085,4103.4,4102.8,0.0243736]
[1761666790608,0.7743,4102.9,4102.8,0.0243736]
[1761666790801,0.7743,4102.9,4102.8,0.2379736]
[1761666791006,0.7743,4102.9,4102.8,0.5652736]
[1761666791205,0.7743,4102.9,4102.8,0.7810736]
[1761666791603,0.7743,4102.9,4100.6,1.09752]
[1761666791604,0.3324,4102.7,4101.8,0.5409]
[1761666791810,0.2203,4101.6,4101.5,0.7567]
[1761666792003,0.2203,4101.6,4100.4,0.1289]
[1761666792004,0.2203,4101.7,4101.6,0.7567]
[1761666792204,0.5527,4101.7,4101.6,0.7567]
[1761666792610,0.55507655,4101.7,4101.6,0.75859375]
[1761666793516,0.77667655,4101.7,4101.6,0.43129375]
[1761666793705,0.77667655,4101.7,4101.6,0.21549375]
[1761666793907,0.77667655,4101.7,4101.6,0.00189375]
[1761666794812,0.84947655,4101.7,4101.6,0.00189375]
[1761666795319,0.77667655,4101.7,4101.6,0.00189375]
[1761666800821,0.55507655,4101.7,4101.6,0.75859375]
[1761666801014,0.00237655,4101.7,4101.6,0.75859375]
[1761666801215,0.55507655,4101.7,4101.6,0.75859375]
[1761666801625,0.00237655,4101.7,4101.6,0.75859375]
[1761666803428,0.00237655,4101.7,4101.6,0.83139375]
[1761666803626,0.77667655,4101.7,4101.6,0.75859375]
[1761666804121,0.77667655,4101.7,4101.6,0.43129375]
[1761666804624,0.77667655,4101.7,4101.6,0.75859375]
[1761666805526,0.00237655,4101.7,4101.6,0.75859375]
[1761666805726,0.00237655,4101.7,4101.6,0.83139375]
[1761666806023,0.55507655,4101.7,4101.6,0.75859375]
[1761666806229,0.00237655,4101.7,4101.6,0.83139375]
[1761666807622,0.00237655,4101.7,4101.6,0.75859375]
[1761666808031,0.55507655,4101.7,4101.6,0.75859375]
[1761666808231,0.77667655,4101.7,4101.6,0.75859375]
[1761666808731,0.00237655,4101.7,4101.6,0.75859375]
[1761666810525,0.00237655,4101.7,4101.6,0.83139375]
[1761666811628,0.00237655,4101.7,4101.6,0.75859375]
[1761666813027,0.00237655,4101.7,4101.6,0.83139375]
[1761666813226,0.00237655,4101.7,4101.6,0.75859375]
[1761666813628,0.22267655,4101.7,4101.6,0.75859375]
[1761666813824,0.00237655,4101.7,4101.6,0.75859375]
[1761666816229,0.22267655,4101.7,4101.6,0.75859375]
[1761666816427,0.78847655,4101.7,4101.6,0.75859375]
[1761666817033,0.00237655,4101.7,4101.6,0.75859375]
[1761666817332,0.00237655,4101.7,4101.6,0.83139375]
[1761666817533,0.00237655,4101.7,4101.6,0.75859375]
[1761666817726,0.00237655,4101.7,4101.6,0.83139375]
[1761666817926,0.00237655,4101.7,4101.6,0.75859375]
[1761666819732,0.00237655,4101.7,4101.6,0.83139375]
[1761666820134,0.00237655,4101.7,4101.6,0.75859375]
[1761666820331,0.00237655,4101.7,4101.6,0.83139375]
[1761666820931,0.00237655,4101.7,4101.6,0.75859375]
[1761666821135,0.00237655,4101.7,4101.6,0.83139375]
[1761666821934,0.00237655,4101.7,4101.6,0.75859375]
[1761666822835,0.00237655,4101.7,4101.6,0.83139375]
[1761666823137,0.5569,4102.9,4102.8,0.7905]
[1761666823342,0.75914505,4102.9,4102.8,0.7905]
[1761666823646,0.789,4102.4,4102.3,0.2166]
[1761666824139,0.5569,4102.0,4101.9,0.7905]
[1761666824535,0.789,4102.3,4102.2,0.441]
[1761666825142,0.00223681,4102.4,4102.3,0.7905]
[1761666825335,0.55913681,4102.4,4102.3,0.7905]
[1761666826443,0.00223681,4102.4,4102.3,0.7905]
[1761666827141,0.55913681,4102.4,4102.3,0.7905]
[1761666828744,0.79123681,4102.4,4102.3,0.7905]
[1761666829342,0.55913681,4102.4,4102.3,0.7905]
[1761666829538,0.00223681,4102.4,4102.3,0.7905]
[1761666830747,0.79123681,4102.4,4101.8,1.66170626]
[1761666831045,0.85481068,4103.2,4103.0,0.2166]
[1761666831244,0.5569,4103.2,4103.1,0.7905]
[1761666831440,1.09297342,4103.2,4103.1,0.7905]
[1761666832252,1.09468759,4103.2,4103.1,0.7905]
[1761666833347,0.22491417,4103.2,4103.1,0.7905]
[1761666833546,0.00171417,4103.2,4103.1,0.7905]
[1761666836238,0.79071417,4103.2,4103.1,0.2166]
[1761666836443,0.79071417,4103.2,4102.7,0.3495]
[1761666836444,0.789,4102.8,4102.7,0.7905]
[1761666837742,0.5569,4103.0,4102.9,0.7905]
[1761666837941,0.789,4103.0,4102.9,0.7905]
[1761666838146,0.924,4103.0,4102.9,0.2166]
[1761666840853,0.924,4103.0,4102.9,0.441]
[1761666841056,0.55861417,4103.2,4103.1,0.7905]
[1761666841555,0.2321,4102.6,4102.5,0.2166]
[1761666841748,0.135,4103.0,4102.0,1.44650626]
[1761666841749,0.2232,4102.1,4102.0,0.2166]
[1761666841946,0.3582,4102.5,4102.4,0.2166]
[1761666842146,0.5569,4102.5,4102.4,0.7905]
[1761666842356,0.789,4102.5,4102.4,0.7905]
[1761666842550,0.2232,4102.5,4102.4,0.7905]
[1761666842850,0.2232,4102.5,4102.0,0.1343]
[1761666842851,0.789,4102.8,4102.7,0.7905]
[1761666844142,0.5569,4103.0,4102.9,0.5739]
[1761666844342,0.789,4103.0,4102.9,0.7905]
[1761666844546,0.789,4103.0,4102.9,0.441]
[1761666844752,0.789,4103.0,4102.5,0.1343]
[1761666844753,0.3311,4101.9,4101.3,1.31220626]
[1761666844947,0.2101,4100.7,4100.5,0.3191]
[1761666845250,0.2101,4100.7,4099.5,15.20802]
[1761666845251,0.7586,4100.7,4100.6,0.7669]
[1761666845651,0.5412,4100.7,4100.6,0.7669]
[1761666845844,0.7586,4100.7,4100.6,0.44977571]
[1761666846052,0.7586,4100.7,4100.6,0.00197571]
[1761666848454,0.7586,4100.7,4100.6,0.22127571]
[1761666849157,0.7586,4100.7,4100.6,0.00197571]
[1761666850057,0.7586,4100.7,4098.9,1.75500808]
[1761666850058,0.3197,4099.8,4098.6,0.43922]
[1761666850254,0.3197,4099.8,4098.0,0.1369]
[1761666850462,0.3197,4099.8,4098.0,0.43928]
[1761666850659,0.3197,4099.8,4098.1,0.43927]
[1761666850855,0.32244272,4099.8,4098.1,0.44157162]
[1761666851263,0.32244272,4099.8,4098.1,0.00230162]
[1761666851462,0.5436,4098.2,4098.1,0.00230162]
[1761666851756,0.7619,4098.2,4098.1,0.00230162]
[1761666854460,0.3197,4098.2,4098.1,0.00230162]
[1761666854661,0.5436,4098.2,4098.1,0.00230162]
[1761666855161,0.7619,4098.2,4098.1,0.00230162]
[1761666856159,0.7619,4098.2,4098.1,0.07590162]
[1761666856463,0.5436,4098.2,4098.1,0.07590162]
[1761666856663,0.5436,4098.2,4098.1,0.00230162]
[1761666857064,0.3197,4098.2,4098.1,0.00230162]
[1761666857364,0.3197,4098.2,4098.1,0.07590162]
[1761666857765,0.3197,4098.2,4098.1,0.00230162]
[1761666858065,0.7619,4098.2,4098.1,0.00230162]
[1761666860857,0.3197,4098.2,4098.1,0.00230162]
[1761666861061,0.7619,4098.2,4098.1,0.00230162]
[1761666868173,0.3197,4098.5,4098.1,0.07590162]
[1761666868370,0.2239,4098.5,4098.2,0.0736]
[1761666868578,0.5436,4098.2,4098.1,0.00230162]
[1761666868784,0.3197,4098.5,4098.1,0.00230162]
[1761666868986,0.3197,4098.5,4098.2,0.0736]